Cogmind - Beta 11 X8 @@@ ROGUE MODE // 2021.11.23 @ 20:48:37 Player: biogoob Result: Destroyed by as-54583 with Assembled F-torch Performance ------------- Evolutions (0) 0 Regions Visited (4) 800 Robots Destroyed (4) 20 Value Destroyed (162) 162 Prototype IDs (2) 40 Alien Tech Used (0) 0 Bonus (0) 0 TOTAL SCORE: 1022 Bonus ------- None Cogmind --------- Core Integrity 0/250 Matter 300/300 Energy 98/100 System Corruption 2% Temperature Cool (60) Movement Core (50) Location -9/Mines Parts ------- > --- POWER (1) -------- (None) > --- PROPULSION (2) --- (None) > --- UTILITY (2) ------ (None) > --- WEAPON (2) ------- (None) > --- INVENTORY (5) ---- Aluminum Leg Medium Storage Unit Large Storage Unit Signal Interpreter Signal Interpreter Peak State ------------ > --- POWER ------------ Ion Engine > --- PROPULSION ------- Aluminum Leg Aluminum Leg > --- UTILITY ---------- Large Storage Unit Targeting Computer > --- WEAPON ----------- EM Pulse Gun Particle Gun > --- INVENTORY -------- Light Ion Engine Light Treads Light Treads Aluminum Leg Aluminum Leg Compact Wheel Compact Wheel Small Storage Unit Medium Storage Unit Signal Interpreter Signal Interpreter Small Laser Light Assault Rifle [Rating: 9] Favorites ----------- Power Ion Engine Engine Ion Engine Propulsion Aluminum Leg Leg Aluminum Leg Utility Targeting Computer Storage Medium Storage Unit Processor Targeting Computer Weapon EM Pulse Gun Energy Gun EM Pulse Gun Build | -11 -10 -10 -10 -9 ------- Run | Scr Mat Min Exi Min Slots Evolved . | . . . . . Power . | . . . . . Propulsion . | . . . . . Utility . | . . . . . Weapon . | . . . . . Parts Attached 9 | . 3 6 . . Power 2 | . 1 1 . . Engine 2 | . 1 1 . . Core . | . . . . . Reactor . | . . . . . Propulsion 2 | . . 2 . . Treads . | . . . . . Leg 2 | . . 2 . . Wheel . | . . . . . Hover . | . . . . . Flight . | . . . . . Utility 3 | . 2 1 . . Device . | . . . . . Storage 2 | . 1 1 . . Processor 1 | . 1 . . . Hackware . | . . . . . Protection . | . . . . . Artifact . | . . . . . Weapon 2 | . . 2 . . Energy Gun 2 | . . 2 . . Energy Cannon . | . . . . . Ballistic Gun . | . . . . . Ballistic Cannon . | . . . . . Launcher . | . . . . . Special Weapon . | . . . . . Impact Weapon . | . . . . . Slashing Weapon . | . . . . . Piercing Weapon . | . . . . . Special Melee Weapon . | . . . . . Unidentified Prototypes . | . . . . . Parts Lost 2 | . 2 . . . Power 1 | . 1 . . . Propulsion . | . . . . . Utility . | . . . . . Weapon 1 | . 1 . . . Highest Loss Streak 2 | . 2 . . . Average Slot Usage (%) 99 | . 99 100 100 75 Engine 13 | . 14 14 14 10 Leg 27 | . 28 28 28 21 Storage 13 | . 14 14 14 10 Processor 13 | . 13 14 14 10 Energy Gun 27 | . 28 28 28 21 Naked Turns 17 | . . . . 17 Heaviest Build 30 | 12 27 30 20 20 Greatest Support 20 | 20 20 20 20 20 Greatest Overweight (x) 1 | . 1 1 . . Average Overweight (x) . | . . . . . Largest Inventory Capacity 15 | . 15 15 10 10 Average Capacity 12 | . 14 13 10 8 Most Carried 13 | . 11 13 10 10 Average Carried 10 | . 9 11 10 8 Final Capacity 15 | 8 15 10 10 5 Final Carried 10 | 6 10 10 10 5 Class Distribution -------------------- 63% | Scavenger-Mutant 36% | Mutant Dominant Class ---------------- Mutant | -10/Materials Scavenger-Mutant | -10/Mines Scavenger-Mutant | -10/Exiles Mutant | -9/Mines Resources | -11 -10 -10 -10 -9 ----------- Run | Scr Mat Min Exi Min Matter Collected 285 | 200 20 65 . . Remotely . | . . . . . Salvage Created 226 | . 105 101 . 20 Parts 13 | . 6 7 . . Haulers Intercepted . | . . . . . Recyclers Shooed . | . . . . . Parts Field Recycled . | . . . . . Retrieved Matter . | . . . . . Parts Self-Destructed . | . . . . . Prevented . | . . . . . Kills | -11 -10 -10 -10 -9 ------- Run | Scr Mat Min Exi Min Combat Hostiles Destroyed 5 | . 2 2 . 1 Guns 5 | . 2 2 . 1 Classes Destroyed 2 | . 1 . . 1 Grunt 4 | . 2 2 . . Assembled 1 | . . . . 1 Best Kill Streak 2 | . 1 2 . 1 Combat Bots Only 2 | . 1 2 . 1 Max Kills in Single Turn 1 | . 1 1 . 1 Gunslinging . | . . . . . Exploded . | . . . . . Melee . | . . . . . Uniques/NPCs Destroyed . | . . . . . Combat | -11 -10 -10 -10 -9 -------- Run | Scr Mat Min Exi Min Damage Taken 656 | . 184 145 . 327 Core 258 | . 31 24 . 203 Absorbed by Shields . | . . . . . Core Remaining (%) 100 | 100 . . . . Volleys Fired 15 | . 6 5 . 4 Largest 2 | . 2 2 . 2 Hottest 105 | . 80 80 . 105 Shots Fired 30 | . 12 10 . 8 Gun 30 | . 12 10 . 8 Cannon . | . . . . . Launcher . | . . . . . Special . | . . . . . Kinetic . | . . . . . Thermal 9 | . . 5 . 4 Explosive . | . . . . . Electromagnetic 21 | . 12 5 . 4 Robot Hit Streak 5 | . 3 5 . 5 Robot Miss Streak 3 | . 3 1 . 1 Penetration Max . | . . . . . Secondary Targets 1 | . . 1 . . Max Gunslinging Chain 1 | . . 1 . . Shots Hit Robots 21 | . 7 8 . 6 Core Hits 14 | . 6 5 . 3 Critical Kills . | . . . . . Critical Parts Destroyed . | . . . . . Critical Strikes . | . . . . . Melee Attacks . | . . . . . Impact . | . . . . . Slashing . | . . . . . Piercing . | . . . . . Sneak Attacks . | . . . . . Combat Hostiles . | . . . . . Follow-up Attacks . | . . . . . Damage Inflicted 353 | . 146 98 . 109 Guns 272 | . 94 98 . 80 Cannons . | . . . . . Explosions 52 | . 52 . . . Melee . | . . . . . Ramming 29 | . . . . 29 Kinetic . | . . . . . Thermal 167 | . 52 57 . 58 Explosive . | . . . . . Electromagnetic 157 | . 94 41 . 22 Impact . | . . . . . Slashing . | . . . . . Piercing . | . . . . . Highest Corruption 2 | . 2 2 2 2 Average Corruption 2 | . 2 2 2 2 Corruption Purged . | . . . . . Effects 5 | . 1 1 3 . Message Errors 1 | . . . 1 . Heat Flow Errors 2 | . 1 1 . . Energy Discharges 1 | . . . 1 . Data Loss (minor) 1 | . . . 1 . Overload Shots . | . . . . . Overflow Damage . | . . . . . Projectiles . | . . . . . Explosions . | . . . . . Melee . | . . . . . Knockbacks . | . . . . . Impact . | . . . . . Kinetic . | . . . . . Secondary . | . . . . . Self-Inflicted Damage 14 | . . . . 14 Shots . | . . . . . Rammed 4 | . . . . 4 Targets Rammed 4 | . . . . 4 Kicked . | . . . . . Crushed . | . . . . . Highest Temperature 180 | . 173 132 . 180 Average Temperature 74 | . 70 68 . 91 Received Heat Transfer 298 | . 120 78 . 100 Siege Activations . | . . . . . Robots Corrupted . | . . . . . Combat Hostiles . | . . . . . Parts Fried 1 | . 1 . . . Impact Corruptions . | . . . . . Robots Melted . | . . . . . Combat Hostiles . | . . . . . Parts Melted . | . . . . . Heat Transferred 373 | . 100 125 . 148 Parts Sabotaged . | . . . . . Parts Stolen . | . . . . . Parts Stripped . | . . . . . Power Chain Reactions 1 | . 1 . . . Missiles Intercepted . | . . . . . Alert | -11 -10 -10 -10 -9 ------- Run | Scr Mat Min Exi Min Peak Influence 120 | . 120 89 . 15 Initial 39 | . . 39 . . Average 58 | . 46 86 . 2 Maximum Alert Level . | . . . . . Low Security (%) 100 | . 100 100 . 100 Level 1 . | . . . . . Level 2 . | . . . . . Level 3 . | . . . . . Level 4 . | . . . . . Level 5 . | . . . . . High Security . | . . . . . Max Security . | . . . . . Squads Dispatched . | . . . . . Investigation . | . . . . . Extermination . | . . . . . Reinforcement . | . . . . . Assault . | . . . . . Garrison . | . . . . . Intercept . | . . . . . Construction Impeded . | . . . . . Haulers Reinforced . | . . . . . Active Scanning Responses . | . . . . . Cargo Convoy Interrupts . | . . . . . Stealth | -11 -10 -10 -10 -9 --------- Run | Scr Mat Min Exi Min Distress Signals 2 | . 2 . . . Communications Jammed . | . . . . . Distress Signals . | . . . . . Times Spotted 30 | . 8 2 . 20 Peak Tracking Total 15 | . 4 2 . 15 Tactical Retreats 3 | . 1 . . 2 Traps | -11 -10 -10 -10 -9 ------- Run | Scr Mat Min Exi Min Traps Triggered 1 | . 1 . . . Indirectly . | . . . . . Trap Hack Attempts . | . . . . . Triggered . | . . . . . Disarmed . | . . . . . Reprogrammed . | . . . . . Reused . | . . . . . Traps Extracted . | . . . . . Installed . | . . . . . Triggered . | . . . . . Machines | -11 -10 -10 -10 -9 ---------- Run | Scr Mat Min Exi Min Machines Disabled . | . . . . . Max in Single Turn . | . . . . . Machines Sabotaged . | . . . . . Garrisons Compromised . | . . . . . Overloaded Fab Kills . | . . . . . Hacking | -11 -10 -10 -10 -9 --------- Run | Scr Mat Min Exi Min Machines Accessed 6 | . 2 . 4 . Terminals 2 | . 2 . . . Fabricators . | . . . . . Repair Stations . | . . . . . Recycling Units . | . . . . . Scanalyzers . | . . . . . Garrison Access . | . . . . . Total Hacks 15 | . 11 . 4 . Successful 10 | . 6 . 4 . Failed 5 | . 5 . . . Catastrophic . | . . . . . Database Lockouts . | . . . . . Manual 11 | . 11 . . . Terminals 11 | . 11 . . . Fabricators . | . . . . . Repair Stations . | . . . . . Recycling Units . | . . . . . Scanalyzers . | . . . . . Garrison Access . | . . . . . Terminal Hacks 9 | . 5 . 4 . Record 4 | . . . 4 . Part Schematic 2 | . 2 . . . Robot Analysis 1 | . 1 . . . Prototype ID Bank 1 | . 1 . . . Locate Traps 1 | . 1 . . . Fabricator Hacks . | . . . . . Repair Station Hacks . | . . . . . Recycling Unit Hacks . | . . . . . Scanalyzer . | . . . . . Garrison Access Hacks . | . . . . . Unauthorized Hacks 1 | . 1 . . . Terminals 1 | . 1 . . . Botnet 1 | . 1 . . . Fabricators . | . . . . . Repair Stations . | . . . . . Recycling Units . | . . . . . Scanalyzers . | . . . . . Garrison Access . | . . . . . Data Cores Recovered . | . . . . . Used . | . . . . . Hacking Detections 2 | . 2 . . . Full Trace Events . | . . . . . Feedback Events . | . . . . . Feedback Blocked . | . . . . . Robot Schematics Acquired . | . . . . . Robots Built . | . . . . . Authchips . | . . . . . Time . | . . . . . Total Robot Build Rating . | . . . . . Part Schematics Acquired 2 | . 2 . . . Parts Built . | . . . . . Authchips . | . . . . . Time . | . . . . . Total Part Build Rating . | . . . . . Parts Repaired . | . . . . . Time . | . . . . . Parts Recycled . | . . . . . Recycled Matter . | . . . . . Retrieved Matter . | . . . . . Retrieved Components . | . . . . . Parts Scanalyzed . | . . . . . Part Schematics Acquired . | . . . . . Parts Damaged . | . . . . . Bothacking | -11 -10 -10 -10 -9 ------------ Run | Scr Mat Min Exi Min Used RIF Installer . | . . . . . Robots Hacked . | . . . . . Non-combat . | . . . . . Combat . | . . . . . Robot Hacks Applied . | . . . . . Relay Couplers Released . | . . . . . Fabnet Peak Effective % . | . . . . . Robots Rewired . | . . . . . Allies Hacked . | . . . . . Hacks Repelled . | . . . . . Allies | -11 -10 -10 -10 -9 -------- Run | Scr Mat Min Exi Min Total Allies 2 | . . 2 . . Largest Group 2 | . . 2 2 . Highest-Rated Group 46 | . . 46 46 . Highest-Rated Ally 31 | . . 31 31 . Total Orders . | . . . . . Ally Attacks . | . . . . . Total Damage . | . . . . . Kills . | . . . . . Allies Corrupted . | . . . . . Allies Melted . | . . . . . Intel | -11 -10 -10 -10 -9 ------- Run | Scr Mat Min Exi Min Robot Analysis Total 1 | . 1 . . . Derelict Logs Recovered . | . . . . . Drone Launches . | . . . . . Drone Recoveries . | . . . . . Exploration | -11 -10 -10 -10 -9 ------------- Run | Scr Mat Min Exi Min Turns Passed 1198 | . 397 258 494 49 Spaces Moved 800 | 1 199 144 412 44 Core 28 | . . . . 28 Treads . | . . . . . Legs 772 | 1 199 144 412 16 Wheels . | . . . . . Hover . | . . . . . Flight . | . . . . . Fastest Speed 50 | 120 120 120 120 50 Average Speed 139 | 120 179 159 120 75 Slowest Speed 190 | 120 190 190 120 120 Overloaded Moves . | . . . . . Propulsion Burnouts . | . . . . . Robots Hopped . | . . . . . Cave-ins Triggered . | . . . . . Exploration Rate (%) 38 | 2 51 33 91 13 Regions Visited 4 Branch Regions 3 Pre-discovered Areas . | . . . . . Known Exits Taken . | . . . . . Unknown Exits Taken 4 | 1 1 1 1 . Scrap Searched 1 | . . 1 . . Spaces Dug . | . . . . . Terrain Destroyed 6 | . 6 . . . Melee . | . . . . . Projectile . | . . . . . AOE 6 | . 6 . . . Terrain Rammed . | . . . . . Walls Destroyed . | . . . . . Machines Disabled . | . . . . . Actions | -11 -10 -10 -10 -9 --------- Run | Scr Mat Min Exi Min Total 849 | . 226 160 411 52 Wait 15 | . 15 . . . Move 796 | . 198 143 411 44 Hop . | . . . . . Pick Up 9 | . 4 5 . . Fast Attach 2 | . 1 1 . . Attach 2 | . 1 1 . . Detach . | . . . . . Swap 5 | . 1 4 . . Drop 1 | . . 1 . . Fire 15 | . 6 5 . 4 Melee . | . . . . . Ram 4 | . . . . 4 Kick . | . . . . . Crush . | . . . . . Escape Stasis . | . . . . . Rewire . | . . . . . Trap . | . . . . . Miscellaneous . | . . . . . Route ------- -11/Scrapyard -10/Materials (discovered 2 exits: [*Mat] / [*Min]) -10/Mines (discovered 2 exits: [*Mat] / *Exi) -10/Exiles (discovered 2 exits: [*Min x2]) -9/Mines History --------- Turn | Location | Event 1 | -11/Scrapyard | Discovered new exit (range 0) 1 | -11/Scrapyard | Entered Materials 156 | -10/Materials | Discovered new exit (range 14) 242 | -10/Materials | Discovered new exit (range 14) 307 | -10/Materials | Build established: Mutant 398 | -10/Materials | Entered Mines 610 | -10/Mines | Discovered new exit (range 5) 650 | -10/Mines | Deemed a non-threat by the Exiles lab entrance 651 | -10/Mines | Discovered new exit (range 5) 656 | -10/Mines | Entered Exiles 656 | -10/Exiles | Found Exiles lab abandoned 656 | -10/Exiles | Accompanied by 2 allies 674 | -10/Exiles | Discovered new exit (range 15) 686 | -10/Exiles | Led the pair of lost Derelicts to a safe place 729 | -10/Exiles | Build established: Scavenger-Mutant 1139 | -10/Exiles | Discovered new exit (range 10) 1150 | -10/Exiles | Entered Mines 1153 | -9/Mines | Assembled infested the area 1158 | -9/Mines | Assisted by a Guerilla fighting off Assembled 1182 | -9/Mines | Released all parts (7) 1196 | -9/Mines | Core integrity fell below 50% 1198 | -9/Mines | Core integrity fell below 20% 1199 | -9/Mines | Destroyed by as-54583 with Assembled F-torch Last Messages --------------- GOAL=ESCAPE 01153_ ALERT: Infestation in the mines, dispatching Demolisher response squad. 01157_ VR-5ZS(h): "I'll hold them off! Go on ahead or try to find another way!" 01158_ A derelict emerges from the shadows: "You need to get out of here! I've been tracking a group of Assembled to figure out where they're coming from, and they're closing on this area, come on!" 01160_ HV Slug penetrates Wall. 01176_ as-25514 destroyed. 01177_ Knocked back. 01182_ Released Med. Storage Unit. 01182_ Released Particle Gun. 01182_ Released EM Pulse Gun. 01182_ Released Targeting Computer. 01182_ Released Aluminum Leg. 01182_ Released Ion Engine. 01185_ Slammed into as-52560. 01187_ Slammed into as-84818. 01188_ Slammed into as-59255. 01197_ Slammed into as-54583. 01197_ Destabilizing: Core damaged (-10). Map ----- +----------------------------------------------------+ | | | | | | | ????????????????????????????????? | | ????????????????????????????????? | | ????????????????????????????????? | | ????????????????????????????????? | | ????????????????????????????????? | | ????????????????????????????????? | | ???####?????????????????????????? | | ??## ##????????????????????????? | | ??# #????????????????????????? | | ??# #????????????????????????? | | ??# #????????????????????????? | | ??# #?????????????????????????? | | ??# #?????????????????????????? | | ??# ##????????????????????????? | | ??# a #????????????????????????? | | ??#< #????????????????????????? | | ??## ########??????????????????? | | ???## % #??????????????????? | | ????# a#####%#??????????????????? | | ????#aa###?# #??????????????????? | | ????# % #?# ######?????????????? | | ????###a #?# % =[#?????????????? | | ??????# @########=#?????????????? | | ??????# % #????#*#?????????????? | | ??????# % a#????#=#?????????????? | | ??????##; =#????#!#?????????????? | | ???????##%$#????#[#?????????????? | | ????????# a#????#%#?????????????? | | ????????# %###?##[##????????????? | | ????????# ###=[*##???????????? | | ???????## ##??????????? | | ??????## #??????????? | | ????### ##??????????? | | ????# ###???????????? | | ????# ##?????????????? | | ????# ####??????????????? | | ????#### ##?????????????????? | | ???????## #??????????????????? | | ????????## #?????????????????? | | ?????????## ????????????????? | | ??????????# """ ???????????????? | | ?????????? """ ??????????????? | | ?????????? """ ?????????????? | | ?????????## ?? ## ????????????? | | ??????????## ????#??#???????????? | | ????????????##??????????????????? | | ????????????????????????????????? | +----------------------------------------------------+ Best States ------------- Heat Dissipation 25 Energy Generation 10 Energy Capacity 250 Matter Stores 300 Matter Capacity 300 Sight Range 16 Terrain Scan Density 10 Evasion (%) 55 Targeting Accuracy 5 Item Schematics ----------------- Med. Storage Unit | -10/Materials | Hacked Sml. Storage Unit | -10/Materials | Hacked Robot Schematics ------------------ None Fabricated ------------ Nothing Alien Tech Used ----------------- None Achievements -------------- None Challenges ------------ None Game ------ Seed WeldingGrenadeBiocell Manual? 0 Play Time 00:06:55 Cumulative 68.4 hours Start 2021.11.23 @ 18:21:14 End 2021.11.23 @ 20:48:37 Sessions 3 Manual Loads 0 Difficulty Rogue Special Mode None Game No. 79 Rogue 59 Adventurer 17 Explorer 3 Win Type - Total 1 Types 0/0/1/0/0/0/0/0/0 Lore% 40 Gallery% 45 Achievement% 42 Wizard Run 0 Options --------- ASCII 1 Keyboard 1 Movement Vi Keybinds 0 Fullscreen 1 Font 18/Terminus Map View 83x54 Tactical HUD 1 Map Filters SATURATION(80) Filters SATURATION(80) Steam 1 RUN: 8333b16a-2b4a-4445-8a43-bb0bf4a86730